Cogmind - Beta 14 @@@ ROGUE MODE // 2024.09.14 @ 21:01:20 Player: Dull Result: Destroyed by 7U-ED4(R) with Subdweller Machine Gun Performance ------------- Evolutions (0) 0 Regions Visited (2) 400 Robots Destroyed (20) 100 Value Destroyed (424) 424 Prototype IDs (3) 60 Alien Tech Used (0) 0 Bonus (0) 0 TOTAL SCORE: 984 Bonus ------- None Cogmind --------- Core Integrity 0/250 Matter 276/300 Energy 204/250 System Corruption 0% Temperature Cool (38) Movement Rolling (112) Ox1 Location -10/Subcaves Parts ------- > --- POWER (1) -------- Ion Engine > --- PROPULSION (2) --- Armored Wheel Subdweller Monowheel > --- UTILITY (2) ------ High-capacity Storage Unit ECM Suite > --- WEAPON (2) ------- Subdweller Beam Cannon Slug Cannon > --- INVENTORY (20) --- Ion Engine Light Treads Light Treads Light Treads Armored Wheel Armored Wheel Armored Wheel Improved Heat Sink Medium Storage Unit Subdweller Optics Core Shielding Subdweller Laser Heavy Assault Rifle Shotgun Barrage Gun Battle Cannon Grenade Launcher Mining Claw Mining Claw Peak State ------------ > --- POWER ------------ Subdweller Power Source > --- PROPULSION ------- Armored Wheel Subdweller Monowheel > --- UTILITY ---------- High-capacity Storage Unit ECM Suite > --- WEAPON ----------- Subdweller Beam Cannon Slug Cannon > --- INVENTORY -------- Ion Engine Ion Engine Ion Engine Light Treads Light Treads Light Treads Armored Wheel Armored Wheel Armored Wheel Improved Heat Sink Medium Storage Unit Subdweller Optics Core Shielding Particle Gun Shotgun Barrage Gun Battle Cannon Grenade Launcher Mining Claw Mining Claw [Rating: 17] Favorites ----------- Power Ion Engine Engine Ion Engine Propulsion Armored Wheel Treads Light Treads Leg Aluminum Leg Wheel Armored Wheel Utility ECM Suite Device ECM Suite Storage High-capacity Storage Unit Weapon Shotgun Energy Gun Medium Laser Energy Cannon Beam Cannon Ballistic Gun Shotgun Ballistic Cannon Slug Cannon Build | -11 -10 -10 ------- Run | Yrd Mat Sub Slots Evolved . | . . . Power . | . . . Propulsion . | . . . Utility . | . . . Weapon . | . . . Parts Attached 20 | . 14 6 Power 5 | . 2 3 Engine 5 | . 2 3 Core . | . . . Reactor . | . . . Propulsion 6 | . 5 1 Treads 2 | . 2 . Leg . | . . . Wheel 4 | . 3 1 Hover . | . . . Flight . | . . . Utility 3 | . 3 . Device 1 | . 1 . Storage 2 | . 2 . Processor . | . . . Hackware . | . . . Protection . | . . . Artifact . | . . . Weapon 6 | . 4 2 Energy Gun . | . . . Energy Cannon 2 | . 1 1 Ballistic Gun 3 | . 3 . Ballistic Cannon 1 | . . 1 Launcher . | . . . Special Weapon . | . . . Impact Weapon . | . . . Slashing Weapon . | . . . Piercing Weapon . | . . . Special Melee Weapon . | . . . Unidentified Prototypes . | . . . Parts Lost 1 | . . 1 Power 1 | . . 1 Propulsion . | . . . Utility . | . . . Weapon . | . . . Highest Loss Streak 1 | . . 1 To Critical Strikes . | . . . Average Slot Usage (%) 98 | . 98 99 Engine 13 | . 14 13 Treads 3 | . 5 . Wheel 24 | . 22 28 Device 13 | . 12 14 Storage 14 | . 14 14 Energy Gun 1 | . 3 . Energy Cannon 8 | . 5 14 Ballistic Gun 15 | . 19 8 Ballistic Cannon 2 | . . 5 Peak Build Rating 17 | 6 12 17 Average Rating 11 | 6 10 14 On Entrance 8 | 6 6 12 Naked Turns . | . . . Heaviest Build 62 | 11 53 62 Greatest Support 40 | 20 40 32 Greatest Overweight (x) 2 | . 2 2 Average Overweight (x) 1 | . 1 1 Largest Inventory Capacity 20 | 8 20 20 Average Capacity 15 | 8 12 20 Most Carried 20 | 6 15 20 Average Carried 12 | 6 9 17 Final Capacity 20 | 8 20 20 Final Carried 19 | 6 15 19 Class Distribution -------------------- 100% | Mutant Dominant Class ---------------- Mutant | -10/Materials Mutant | -10/Subcaves Resources | -11 -10 -10 ----------- Run | Yrd Mat Sub Matter Collected 722 | 200 407 115 Remotely . | . . . Salvage Created 519 | . 446 73 Parts 45 | . 39 6 Haulers Intercepted 1 | . 1 . Recyclers Shooed . | . . . Parts Field Recycled . | . . . Retrieved Matter . | . . . Parts Self-Destructed 11 | . . 11 Prevented . | . . . Kills | -11 -10 -10 ------- Run | Yrd Mat Sub Combat Hostiles Destroyed 13 | . 11 2 Guns 12 | . 11 1 Cannons 1 | . . 1 Classes Destroyed 9 | . 7 2 Worker 1 | . 1 . Hauler 1 | . 1 . Recycler 1 | . 1 . Operator 1 | . 1 . Watcher 3 | . 3 . Swarmer 6 | . 6 . Grunt 5 | . 5 . Sentry 1 | . . 1 Subdweller 1 | . . 1 Best Kill Streak 3 | . 3 1 Combat Bots Only 3 | . 3 1 Max Kills in Single Turn 1 | . 1 1 Gunslinging . | . . . Exploded . | . . . Melee . | . . . Uniques/NPCs Destroyed . | . . . Combat | -11 -10 -10 -------- Run | Yrd Mat Sub Hostile Shots Fired 82 | . 56 26 Missed 16 | . 10 6 Damage Taken 872 | . 470 402 Core 252 | . 89 163 Absorbed by Shields . | . . . Regen/Repaired (Parts) 33 | . 33 . Core Remaining (%) 100 | 100 . . Volleys Fired 71 | . 53 18 Largest 2 | . 2 2 Hottest 128 | . 83 128 Shots Fired 140 | . 104 36 Gun 100 | . 88 12 Cannon 40 | . 16 24 Launcher . | . . . Special . | . . . Kinetic 95 | . 77 18 Thermal 45 | . 27 18 Explosive . | . . . Electromagnetic . | . . . Robot Hit Streak 13 | . 8 13 Robot Miss Streak 3 | . 3 2 Penetration Max . | . . . Secondary Targets 1 | . 1 . Max Gunslinging Chain 1 | . 1 . Shots Hit Robots 92 | . 70 22 Core Hits 35 | . 31 4 Critical Kills . | . . . Critical Parts Destroyed 1 | . . 1 Critical Strikes 2 | . 1 1 Burn 1 | . 1 . Destroy 1 | . . 1 Melee Attacks . | . . . Impact . | . . . Slashing . | . . . Piercing . | . . . Sneak Attacks . | . . . Combat Hostiles . | . . . Follow-up Attacks . | . . . Damage Inflicted 1287 | . 978 309 Guns 851 | . 799 52 Cannons 431 | . 174 257 Explosions . | . . . Melee . | . . . Ramming 5 | . 5 . Kinetic 899 | . 750 149 Thermal 383 | . 223 160 Explosive . | . . . Electromagnetic . | . . . Impact . | . . . Slashing . | . . . Piercing . | . . . Highest Corruption . | . . . Average Corruption . | . . . Corruption Purged . | . . . Corruption Blocked . | . . . Overload Shots . | . . . Overflow Damage 5 | . . 5 Projectiles 5 | . . 5 Explosions . | . . . Melee . | . . . Knockbacks 1 | . . 1 Impact . | . . . Kinetic 1 | . . 1 Secondary . | . . . Self-Inflicted Damage 2 | . 2 . Shots . | . . . Rammed 2 | . 2 . Targets Rammed 2 | . 2 . Kicked . | . . . Crushed . | . . . Highest Temperature 140 | . 140 32 Average Temperature 40 | . 42 14 Received Heat Transfer 252 | . 147 105 Siege Activations . | . . . Robots Corrupted . | . . . Combat Hostiles . | . . . Parts Fried . | . . . Impact Corruptions . | . . . Robots Melted . | . . . Combat Hostiles . | . . . Parts Melted 1 | . 1 . Heat Transferred 814 | . 592 222 Parts Sabotaged . | . . . Parts Stolen . | . . . Parts Stripped . | . . . Power Chain Reactions . | . . . Alert | -11 -10 -10 ------- Run | Yrd Mat Sub Peak Influence 198 | . 198 . Initial . | . . . Average 60 | . 61 . Maximum Alert Level . | . . . Low Security (%) 100 | 100 100 . Level 1 . | . . . Level 2 . | . . . Level 3 . | . . . Level 4 . | . . . Level 5 . | . . . High Security . | . . . Max Security . | . . . Squads Dispatched 1 | . 1 . Investigation . | . . . Extermination . | . . . Reinforcement 1 | . 1 . Assault . | . . . Garrison . | . . . Intercept . | . . . Searches Triggered . | . . . Construction Impeded . | . . . Haulers Reinforced . | . . . Active Scanning Responses . | . . . Cargo Convoy Interrupts . | . . . Stealth | -11 -10 -10 --------- Run | Yrd Mat Sub Distress Signals 1 | . 1 . Communications Jammed . | . . . Distress Signals . | . . . Times Spotted 28 | . 24 4 Peak Tracking Total 4 | . 4 2 Tactical Retreats 4 | . 4 . Traps | -11 -10 -10 ------- Run | Yrd Mat Sub Traps Triggered . | . . . Indirectly . | . . . Trap Hack Attempts . | . . . Triggered . | . . . Disarmed . | . . . Reprogrammed . | . . . Reused . | . . . Traps Extracted . | . . . Installed . | . . . Triggered . | . . . Machines | -11 -10 -10 ---------- Run | Yrd Mat Sub Machines Disabled 1 | . 1 . Max in Single Turn 1 | . 1 . Machines Repaired . | . . . Machines Dismantled . | . . . Machines Sabotaged . | . . . Overloaded Fab Kills . | . . . Hacking | -11 -10 -10 --------- Run | Yrd Mat Sub Machines Accessed 9 | . 9 . Terminals 6 | . 6 . Fabricators . | . . . Repair Stations 1 | . 1 . Recycling Units 2 | . 2 . Scanalyzers . | . . . Garrison Access . | . . . Total Hacks 23 | . 23 . Successful 10 | . 10 . Failed 12 | . 12 . Catastrophic . | . . . Database Lockouts 1 | . 1 . Manual 18 | . 18 . Terminals 15 | . 15 . Fabricators . | . . . Repair Stations 2 | . 2 . Recycling Units 6 | . 6 . Scanalyzers . | . . . Garrison Access . | . . . Terminal Hacks 4 | . 4 . Robot Analysis 2 | . 2 . Prototype ID Bank 2 | . 2 . Fabricator Hacks . | . . . Repair Station Hacks 2 | . 2 . Scan Component 1 | . 1 . Repair 1 | . 1 . Recycling Unit Hacks . | . . . Scanalyzer . | . . . Garrison Access Hacks . | . . . Unauthorized Hacks 4 | . 4 . Terminals . | . . . Fabricators . | . . . Repair Stations . | . . . Recycling Units 4 | . 4 . Reject 2 | . 2 . Mask 2 | . 2 . Scanalyzers . | . . . Garrison Access . | . . . Data Cores Recovered . | . . . Used . | . . . Hacking Detections 6 | . 6 . Full Trace Events 2 | . 2 . Feedback Events . | . . . Feedback Blocked . | . . . Robot Schematics Acquired . | . . . Robots Built . | . . . Authchips . | . . . Time . | . . . Total Robot Build Rating . | . . . Part Schematics Acquired . | . . . Parts Built . | . . . Authchips . | . . . Time . | . . . Total Part Build Rating . | . . . Parts Repaired 1 | . 1 . Time 32 | . 32 . Parts Recycled . | . . . Recycled Matter . | . . . Retrieved Matter . | . . . Retrieved Components . | . . . Parts Scanalyzed . | . . . Part Schematics Acquired . | . . . Parts Damaged . | . . . Bothacking | -11 -10 -10 ------------ Run | Yrd Mat Sub Used RIF Installer . | . . . Robots Hacked . | . . . Non-combat . | . . . Combat . | . . . Robot Hacks Applied . | . . . Relay Couplers Released . | . . . Fabnet Peak Effective % . | . . . Robots Rewired . | . . . Allies Hacked . | . . . Hacks Repelled . | . . . Allies | -11 -10 -10 -------- Run | Yrd Mat Sub Total Allies . | . . . Largest Group . | . . . Highest-Rated Group . | . . . Highest-Rated Ally . | . . . Total Orders . | . . . Ally Attacks . | . . . Total Damage . | . . . Kills . | . . . Allies Corrupted . | . . . Allies Melted . | . . . Intel | -11 -10 -10 ------- Run | Yrd Mat Sub Robot Analysis Total 2 | . 2 . Derelict Logs Recovered 2 | . . 2 Drone Launches . | . . . Drone Recoveries . | . . . Exploration | -11 -10 -10 ------------- Run | Yrd Mat Sub Turns Passed 2124 | 27 1293 804 Spaces Moved 1460 | 23 825 612 Core . | . . . Treads 117 | . 117 . Legs 23 | 23 . . Wheels 1320 | . 708 612 Hover . | . . . Flight . | . . . Fastest Speed 90 | 120 90 112 Average Speed 115 | 120 115 116 Slowest Speed 160 | 120 160 120 Overloaded Moves . | . . . Propulsion Burnouts . | . . . Robots Hopped . | . . . Cave-ins Triggered . | . . . Exploration Rate (%) 47 | 3 100 40 Regions Visited 2 Branch Regions 1 Pre-discovered Areas 1 | . . 1 Known Exits Taken . | . . . Unknown Exits Taken 2 | 1 1 . Scrap Searched 4 | . . 4 Spaces Dug . | . . . Terrain Destroyed 2 | . . 2 Melee . | . . . Projectile 2 | . . 2 AOE . | . . . Terrain Rammed . | . . . Walls Destroyed . | . . . Machines Disabled . | . . . Actions | -11 -10 -10 --------- Run | Yrd Mat Sub Total 1755 | 22 1064 669 Wait 170 | . 144 26 Move 1458 | 22 824 612 Hop . | . . . Pick Up 21 | . 16 5 Fast Attach 2 | . 2 . Attach 2 | . . 2 Detach . | . . . Swap 16 | . 12 4 Drop 13 | . 11 2 Fire 71 | . 53 18 Melee . | . . . Ram 2 | . 2 . Kick . | . . . Crush . | . . . Escape Stasis . | . . . Rewire . | . . . Trap . | . . . Miscellaneous . | . . . Route ------- -11/Scrapyard -10/Materials (discovered 6 exits: [*Mat x3] / [*Min x2] / [*Sub]) -10/Subcaves History --------- Turn | Location | Event 1 | -11/Scrapyard | Discovered new exit (range 3) 28 | -11/Scrapyard | Entered Materials 152 | -10/Materials | Discovered new exit (range 8) 278 | -10/Materials | Discovered new exit (range 15) 326 | -10/Materials | Build established: Mutant 470 | -10/Materials | Discovered new exit (range 7) 528 | -10/Materials | Discovered new exit (range 4) 597 | -10/Materials | Repaired Arm. Wheel 752 | -10/Materials | Central database locked down 764 | -10/Materials | Discovered new exit (range 9) 1216 | -10/Materials | Discovered new exit (range 7) 1321 | -10/Materials | Entered Subcaves 1583 | -10/Subcaves | Shifting Twisted Machinery released Sub. Optics 1590 | -10/Subcaves | Shifting Twisted Machinery released Riot Gun 1699 | -10/Subcaves | Learned 2 Materials zone layouts 1736 | -10/Subcaves | Core integrity fell below 50% 2122 | -10/Subcaves | Core integrity fell below 20% 2125 | -10/Subcaves | Destroyed by 7U-ED4(R) with Subdweller Machine Gun Last Messages --------------- 01791_ Subatomizers dissect the Sub. Optics. 02006_ Sub. Power Source shoots sparks and powers down. 02006_ Dropped Broken Sub. Power Source. 02018_ Subatomizers dissect the Sub. Monowheel. 02022_ Critical hit (Burn: +37). 02037_ Destroyed Beam Rifle. 02037_ Y-45 Defender suffers critical hit (Destroy). 02037_ Destroyed Imp. Ion Engine. 02037_ Ion Engine destroyed. 02040_ Y-45 Defender destroyed. 02043_ Subatomizers dissect the Sub. Monowheel. 02044_ Acquired Hvy. Assault Rifle. 02045_ Heat Sink fries itself beyond repair. 02046_ Dropped Particle Gun. 02046_ Acquired Sub. Laser. 02047_ Acquired 17 matter. 02053_ Subatomizers dissect the Sub. Monowheel. 02054_ Acquired 10 matter. 02075_ Subatomizers dissect the Sub. Monowheel. 02115_ 7U-ED4(R) knocked back. Map ----- +----------------------------------------------------+ | ?????????????????????????????????????????????????? | | ?????????????????????????????????????????????????? | | ?????????????????????????????????????????????????? | | ?????????????????????????????????????????????????? | | ?????????????????????????????????????????????????? | | ?????????????????????????????????????????????????? | | ?????????????????????????????????????????????????? | | ?????????????????????????????????????????????????? | | ?????????????????????????????????????????????????? | | ?????????????????????????????????????????????????? | | ?????????????????????????????????????????????????? | | ??????????????????????????????????????????#####??? | | ????????????????????????????????????????### #?## | | ????????????????????????????????????????# ### | | ?????????????????????????????????????????# | | ?????????????????????????????????????????## | | ?????????????????????????????????????????### [ | | ?????????????????????????????????????????# =% | | ?????????????????????????????????????????# % | | ?????????????????????????????????????????# | | ?????????????????????????????????????????# | | ?????????????????????????###?????????????# | | ?????????????? ""???????## ####????############ | | ???????????????" "?????# ## ##??## ##?## | | ??????????????? """ ??## ##?# ### | | ??????????????? """ #;@ ##?# | | ??????????????? """ [R ##?# | | ?????????????# R ### ###### # | | ?????????????# ## %### # #???###### | | ??????????? #??# #?#### #????????? | | ?????????? ???# #????## #????????? | | ???????????### ?????######?????# ## ##????????? | | ?????????????#??????????????????########?????????? | | ?????????????????????????????????????????????????? | | ?????????????????????????????????????????????????? | | ?????????????????????????????????????????????????? | | ?????????????????????????????????????????????????? | | ?????????????????????????????????????????????????? | | ?????????????????????????????????????????????????? | | ?????????????????????????????????????????????????? | | ?????????????????????????????????????????????????? | | ?????????????????????????????????????????????????? | | ?????????????????????????????????????????????????? | | ?????????????????????????????????????????????????? | | ?????????????????????????????????????????????????? | | ?????????????????????????????????????????????????? | | ?????????????????????????????????????????????????? | | | | | | | +----------------------------------------------------+ Best States ------------- Heat Dissipation 25 Energy Generation 15 Energy Capacity 250 Matter Stores 300 Matter Capacity 300 Sight Range 16 Terrain Scan Density 10 ECM Strength 1 Evasion (%) 55 Recoil Reduction 2 Item Schematics ----------------- None Robot Schematics ------------------ None Fabricated ------------ Nothing Alien Tech Used ----------------- None Achievements -------------- None Challenges ------------ None Game ------ Seed InsulationTrapCompressor Manual? 0 Play Time 00:14:35 Cumulative 78.7 hours Start 2024.09.14 @ 20:47:29 End 2024.09.14 @ 21:01:20 Sessions 1 Manual Loads 0 Difficulty Rogue Special Mode None Game No. 106 Rogue 106 Adventurer 0 Explorer 0 Win Type - Total 1 Types 1/0/0/0/0/0/0/0/0 Lore% 17 Gallery% 55 Achievement% 43 Wizard Run 0 Options --------- Layout 0 ASCII 0 Keyboard 0 Movement Mouse Keybinds 1 Fullscreen 1 Font 18/TerminusBold Map View 76x50 Zoom Use 0% Tactical HUD 1 Map Filters NONE Filters NONE Steam 1 RUN: 46ec1f15-7ec3-4f54-a625-92cd2135cefe